bitfinex/quotes_BTCUSD_20250802
["timestamp","ask_amount","ask_price","bid_price","bid_amount"]
[1754097564851,0.51557721,113910.0,113900.0,0.04817]
[1754097565061,0.17563888,113870.0,113840.0,0.36331699]
[1754097565370,0.31015888,113870.0,113860.0,0.69427785]
[1754097565606,0.31015888,113870.0,113860.0,0.69637785]
[1754097565861,0.31015888,113870.0,113860.0,0.05027]
[1754097566122,0.33654888,113870.0,113860.0,0.74454785]
[1754097566567,0.33659671,113870.0,113860.0,0.05027]
[1754097566787,0.33659671,113870.0,113860.0,0.74554785]
[1754097566999,0.20207671,113870.0,113860.0,0.74554785]
[1754097567123,0.37274746,113870.0,113860.0,0.74554785]
[1754097568221,0.39867352,113870.0,113860.0,0.74554785]
[1754097568672,0.21718132,113870.0,113860.0,0.05527]
[1754097568945,0.21718132,113870.0,113860.0,0.74954785]
[1754097569192,0.3928202,113870.0,113860.0,0.74954785]
[1754097571018,0.21718132,113870.0,113860.0,0.74954785]
[1754097572617,0.21718132,113870.0,113860.0,0.05527]
[1754097572836,0.21718132,113870.0,113860.0,0.75174352]
[1754097573059,0.21718132,113870.0,113860.0,0.74954785]
[1754097573518,0.21718132,113870.0,113860.0,0.05527]
[1754097573740,0.21718132,113870.0,113860.0,0.75174352]
[1754097573966,0.21718132,113870.0,113860.0,0.74954785]
[1754097574411,0.3928202,113870.0,113860.0,0.74954785]
[1754097580287,0.3928202,113870.0,113860.0,0.05527]
[1754097580502,0.3928202,113870.0,113860.0,0.74954785]
[1754097581182,0.3928202,113870.0,113860.0,0.05527]
[1754097581183,0.45054398,113870.0,113860.0,0.05527]
[1754097581408,1.14482183,113870.0,113860.0,0.05317]
[1754097581638,0.49329398,113870.0,113860.0,0.005]
[1754097581862,1.18757183,113870.0,113860.0,0.005]
[1754097582947,1.11151197,113870.0,113860.0,0.005]
[1754097583367,1.19571186,113870.0,113860.0,0.005]
[1754097583575,1.19571186,113870.0,113860.0,0.001]
[1754097584276,1.55316088,113870.0,113860.0,0.001]
[1754097584693,0.17566974,113850.0,113840.0,0.04827001]
[1754097584906,1.10982031,113850.0,113840.0,0.00311001]
[1754097585130,1.44982031,113850.0,113840.0,0.00010001]
[1754097585785,0.83160232,113850.0,113840.0,0.00010001]
[1754097585993,1.44982031,113850.0,113840.0,0.00010001]
[1754097587078,1.44982031,113850.0,113840.0,0.00110001]
[1754097587709,1.44982031,113850.0,113840.0,0.00010001]
[1754097587915,0.53313419,113840.0,113830.0,0.0004]
[1754097588149,1.36250196,113840.0,113830.0,0.0004]
[1754097588589,0.1757006,113830.0,113820.0,0.04817]
[1754097588807,0.39702049,113830.0,113820.0,0.05027]
[1754097589944,0.39702049,113830.0,113820.0,0.05074859]
[1754097590369,0.19316506,113820.0,113810.0,0.04857]
[1754097590585,0.27736495,113820.0,113810.0,0.05067]
[1754097591408,0.30476777,113820.0,113810.0,0.05067]
[1754097591625,0.33117477,113820.0,113810.0,0.05067]
[1754097591836,0.1931805,113810.0,113800.0,0.04857]
[1754097592048,0.1931805,113810.0,113800.0,0.05067]
[1754097592049,0.44178321,113810.0,113800.0,0.05067]
[1754097592997,0.46819321,113810.0,113800.0,0.05067]
[1754097593196,0.51094321,113810.0,113800.0,0.00341]
[1754097593761,0.48354039,113810.0,113800.0,0.00341]
[1754097593968,0.56774028,113810.0,113800.0,0.04857]
[1754097594172,0.19319594,113800.0,113790.0,0.0004]
[1754097594358,0.19319594,113800.0,113790.0,0.05067]
[1754097594359,0.27739583,113800.0,113790.0,0.05067]
[1754097594970,0.30380783,113800.0,113790.0,0.05067]
[1754097595584,0.32969463,113800.0,113790.0,0.05067]
[1754097596607,0.32969463,113800.0,113790.0,0.05167]
[1754097601416,0.32969463,113800.0,113790.0,0.66988799]
[1754097601417,0.0522988,113800.0,113790.0,0.66988799]
[1754097601644,0.1890988,113800.0,113790.0,0.66988799]
[1754097601846,0.1890988,113800.0,113790.0,0.84565035]
[1754097602048,0.0522988,113800.0,113790.0,0.84565035]
[1754097602896,0.0522988,113800.0,113790.0,0.22743236]
[1754097603095,0.0522988,113800.0,113790.0,0.05167]
[1754097603410,0.0522988,113800.0,113790.0,0.66988799]
[1754097604266,0.0522988,113800.0,113790.0,0.80700799]
[1754097604475,0.0522988,113800.0,113790.0,0.98277035]
[1754097605024,0.0522988,113800.0,113790.0,0.80700799]
[1754097605207,0.0522988,113800.0,113790.0,0.18879]
[1754097605419,0.0522988,113800.0,113790.0,0.80700799]
[1754097606623,0.0522988,113800.0,113790.0,0.98277035]
[1754097607500,0.0522988,113800.0,113790.0,0.36455236]
[1754097607729,0.0522988,113800.0,113790.0,0.98277035]
[1754097612982,0.13712,113810.0,113800.0,0.61821799]
[1754097613203,0.026407,113810.0,113800.0,0.62021799]
[1754097613422,0.026407,113810.0,113800.0,0.67046799]
[1754097613849,0.20213848,113810.0,113800.0,0.67046799]
[1754097614797,0.026407,113810.0,113800.0,0.67046799]
[1754097615059,0.18496409,113830.0,113800.0,1.4644329]
[1754097615277,0.02688046,113830.0,113820.0,0.61821799]
[1754097615499,0.13751846,113830.0,113820.0,0.62021799]
[1754097615707,0.13751846,113830.0,113820.0,0.67046799]
[1754097615927,0.13747846,113830.0,113820.0,0.67046799]
[1754097616396,0.02695703,113830.0,113820.0,0.84618403]
[1754097618000,0.02695703,113830.0,113820.0,0.84718403]
[1754097619541,0.02695703,113830.0,113820.0,0.84618403]
[1754097619964,0.02695703,113830.0,113820.0,0.05525]
[1754097620195,0.02695703,113830.0,113820.0,0.67346799]
[1754097620655,0.02695703,113830.0,113820.0,0.67446799]
[1754097628920,0.02695703,113830.0,113820.0,0.85018403]
[1754097629136,0.00047846,113830.0,113820.0,0.85018403]
[1754097629306,0.00047846,113830.0,113820.0,0.93438392]
[1754097629506,0.00039059,113830.0,113820.0,0.93438392]
[1754097634143,0.00039059,113830.0,113820.0,1.07106392]
[1754097638813,0.00039059,113830.0,113820.0,0.45284593]
[1754097639167,0.00039059,113830.0,113820.0,1.07106392]
[1754097645972,0.04723059,113830.0,113820.0,0.70641788]
[1754097646184,0.22293119,113830.0,113820.0,0.004]
[1754097646398,0.22293119,113830.0,113820.0,0.14024]
[1754097647199,0.22293119,113830.0,113820.0,0.75845799]
[1754097651174,0.22293119,113830.0,113820.0,0.76154799]
[1754097654958,0.22293119,113830.0,113820.0,0.14333]
[1754097655245,0.27246019,113830.0,113820.0,0.004]
[1754097655634,0.40846019,113830.0,113820.0,0.004]
[1754097656476,0.35893119,113830.0,113820.0,0.003]
[1754097656688,0.17571604,113820.0,113810.0,0.80125799]
[1754097656909,0.17571604,113820.0,113810.0,0.75716799]
[1754097657111,0.22132604,113820.0,113810.0,0.13895]
[1754097657325,0.22132604,113820.0,113810.0,0.75716799]
[1754097657538,0.22132604,113820.0,113810.0,0.80316799]
[1754097658171,0.22132604,113820.0,113810.0,0.76016799]
[1754097659003,0.22132604,113820.0,113810.0,0.80716799]
[1754097659643,0.22132604,113820.0,113810.0,0.80925799]
[1754097659778,0.17571604,113820.0,113810.0,0.80925799]
[1754097666040,0.35770119,113830.0,113810.0,0.80925799]
[1754097666251,0.31681401,113830.0,113820.0,0.61821799]
[1754097666441,0.31681401,113830.0,113820.0,0.62120799]
[1754097668269,0.31681401,113830.0,113820.0,0.66720799]
[1754097668701,0.31681401,113830.0,113820.0,0.66820799]
[1754097671863,0.31681401,113830.0,113820.0,0.67029799]
[1754097673181,0.31681401,113830.0,113820.0,0.05208]
[1754097673369,0.27120401,113830.0,113820.0,0.67029799]
[1754097673577,1.34097321,113830.0,113820.0,0.001]
[1754097673799,1.47649321,113830.0,113820.0,0.001]
[1754097674020,1.50290021,113830.0,113820.0,0.001]
[1754097674459,0.17573148,113810.0,113800.0,0.00299]
[1754097674686,0.34639756,113810.0,113800.0,0.04899]
[1754097674886,0.39200756,113810.0,113800.0,0.04899]
[1754097675967,0.39200756,113810.0,113800.0,0.04999]
[1754097679144,0.39200756,113810.0,113800.0,0.05208]
[1754097680201,0.41841356,113810.0,113800.0,0.05208]
[1754097681801,0.37280356,113810.0,113800.0,0.05208]
[1754097687136,0.41692356,113810.0,113800.0,0.001]
[1754097688803,0.41692356,113810.0,113800.0,0.00399]
[1754097692006,0.41692356,113810.0,113800.0,0.04855]
[1754097692608,0.41692356,113810.0,113800.0,0.00399]
[1754097692811,0.41692356,113810.0,113800.0,0.001]
[1754097693617,0.41692356,113810.0,113800.0,0.00399]
[1754097695924,0.41692356,113810.0,113800.0,0.001]
[1754097696373,0.50112345,113810.0,113800.0,0.001]
[1754097701922,0.50112345,113810.0,113800.0,0.00399]
[1754097704734,1.02322251,113810.0,113800.0,0.00399]
[1754097712306,1.02322251,113810.0,113800.0,0.04855]
[1754097713119,0.97910251,113810.0,113800.0,0.05062]
[1754097714426,1.02322251,113810.0,113800.0,0.05062]
[1754097714935,0.97910251,113810.0,113800.0,0.05062]
[1754097716067,1.02245251,113810.0,113800.0,0.05062]
[1754097719970,0.98730643,113810.0,113800.0,0.05062]
[1754097720173,0.46520737,113810.0,113800.0,0.05062]
[1754097720371,0.98730643,113810.0,113800.0,0.05062]
[1754097721092,0.94395643,113810.0,113800.0,0.05062]
[1754097721298,0.42185737,113810.0,113800.0,0.05062]
[1754097721486,1.01505444,113810.0,113800.0,0.05062]
[1754097722410,0.42149737,113810.0,113800.0,0.05062]
[1754097722539,0.42149737,113810.0,113800.0,0.57271906]
[1754097722739,0.026406,113810.0,113800.0,0.57271906]
[1754097722958,0.161566,113810.0,113800.0,0.57271906]
[1754097723167,0.13516,113810.0,113800.0,0.57271906]
[1754097724822,0.18035705,113820.0,113800.0,0.57271906]
[1754097725034,0.161567,113820.0,113810.0,0.56664906]
[1754097725238,0.161567,113820.0,113810.0,0.56870906]
[1754097725781,0.161567,113820.0,113810.0,0.74444054]
[1754097726374,0.13516,113820.0,113810.0,0.56870906]
[1754097728578,0.13516,113820.0,113810.0,0.56970906]
[1754097737006,0.13516,113820.0,113810.0,0.70482906]
[1754097747569,0.34596873,113830.0,113810.0,0.70482906]
[1754097747782,0.34596873,113830.0,113820.0,0.57054906]
[1754097747983,0.34596873,113830.0,113820.0,0.57253906]
[1754097750895,0.38924873,113830.0,113820.0,0.57253906]
[1754097751135,0.38924873,113830.0,113820.0,0.05044]
[1754097756363,0.026403,113830.0,113820.0,0.57253906]
[1754097756569,0.21109976,113840.0,113820.0,0.57253906]
[1754097756763,0.13508,113830.0,113820.0,0.00207452]
[1754097757457,0.13508,113830.0,113820.0,0.05052452]
[1754097758098,0.13508,113830.0,113820.0,0.57262358]
[1754097760860,0.23750076,113840.0,113820.0,1.27043858]
[1754097761062,0.18807055,113840.0,113830.0,0.57054906]
[1754097761270,0.18807055,113840.0,113830.0,0.57253906]
[1754097761271,0.05303055,113840.0,113830.0,0.57253906]
[1754097761480,0.18807055,113840.0,113830.0,0.05044]
[1754097761687,0.18807055,113840.0,113830.0,0.57253906]
[1754097762088,0.18907055,113840.0,113830.0,0.57253906]
[1754097762502,0.18807055,113840.0,113830.0,0.57253906]
[1754097763908,0.36575572,113840.0,113830.0,0.57253906]
[1754097764876,0.36575572,113840.0,113830.0,0.05044]
[1754097765092,0.36575572,113840.0,113830.0,0.57253906]
[1754097767395,0.16366955,113840.0,113830.0,0.57253906]
[1754097770072,0.33835472,113840.0,113830.0,0.57253906]
[1754097770718,0.16266955,113840.0,113830.0,0.57253906]
[1754097772293,0.16166955,113840.0,113830.0,0.57253906]
[1754097773788,0.33735472,113840.0,113830.0,0.57253906]
[1754097782241,0.1757006,113830.0,113820.0,8.452e-05]
[1754097782392,0.74037966,113830.0,113820.0,0.04781452]
[1754097782595,0.74037966,113830.0,113820.0,8.452e-05]
[1754097783083,0.76678266,113830.0,113820.0,8.452e-05]
[1754097783287,0.85098255,113830.0,113820.0,8.452e-05]
[1754097783722,0.85098255,113830.0,113820.0,0.00108452]
[1754097786243,0.93518244,113830.0,113820.0,0.00108452]
[1754097786457,1.29263146,113830.0,113820.0,0.00108452]
[1754097787374,1.29263146,113830.0,113820.0,8.452e-05]
[1754097787827,1.29363146,113830.0,113820.0,8.452e-05]
[1754097788885,1.29463146,113830.0,113820.0,8.452e-05]
[1754097789582,1.81673052,113830.0,113820.0,8.452e-05]
[1754097790212,1.29463146,113830.0,113820.0,8.452e-05]
[1754097790577,1.81673052,113830.0,113820.0,8.452e-05]
[1754097790738,0.7725324,113830.0,113820.0,8.452e-05]
[1754097790943,1.23663959,113830.0,113820.0,8.452e-05]
[1754097792800,1.37159959,113830.0,113820.0,8.452e-05]
[1754097797032,1.42443959,113830.0,113820.0,8.452e-05]
[1754097797885,1.43818619,113830.0,113820.0,8.452e-05]
[1754097801581,0.921239,113830.0,113820.0,8.452e-05]
[1754097801784,1.38534619,113830.0,113820.0,8.452e-05]
[1754097811531,1.40430861,113830.0,113820.0,8.452e-05]
[1754097812372,1.20163752,113830.0,113820.0,8.452e-05]
[1754097812594,1.36172861,113830.0,113820.0,8.452e-05]
[1754097812772,1.94182252,113830.0,113820.0,8.452e-05]
[1754097814184,1.95032252,113830.0,113820.0,8.452e-05]
[1754097815489,1.95032252,113830.0,113820.0,0.04304452]
[1754097816090,1.42822197,113830.0,113820.0,0.04304452]
[1754097816307,1.42822197,113830.0,113820.0,8.452e-05]
[1754097816638,1.45171197,113830.0,113820.0,8.452e-05]
[1754097816905,1.95032252,113830.0,113820.0,8.452e-05]
[1754097817346,1.42822197,113830.0,113820.0,8.452e-05]
[1754097817684,1.42822197,113830.0,113820.0,0.04304452]
[1754097818884,1.95032252,113830.0,113820.0,0.04304452]
[1754097819085,1.42822197,113830.0,113820.0,0.04304452]
[1754097819758,1.95032252,113830.0,113820.0,0.04304452]
[1754097820158,1.95032252,113830.0,113820.0,0.04605452]
[1754097821642,1.94182252,113830.0,113820.0,0.04605452]
[1754097822615,1.83634701,113830.0,113820.0,0.04605452]
[1754097822824,1.86275601,113830.0,113820.0,0.04605452]
[1754097825101,1.86275601,113830.0,113820.0,8.452e-05]
[1754097825305,0.17574692,113800.0,113790.0,0.0004]
[1754097825504,0.31066692,113800.0,113790.0,0.00253]
[1754097825736,0.90366153,113800.0,113790.0,0.00253]
[1754097826492,0.90366153,113800.0,113790.0,0.00353]
[1754097826699,0.90718353,113800.0,113790.0,0.00353]
[1754097826922,0.38508298,113800.0,113790.0,0.00653]
[1754097827137,0.90718353,113800.0,113790.0,0.00653]
[1754097827338,0.90718353,113800.0,113790.0,0.0525]
[1754097827541,1.24718353,113800.0,113790.0,0.0515]
[1754097828196,1.24718353,113800.0,113790.0,0.0485]
[1754097828382,1.24718353,113800.0,113790.0,0.0495]
[1754097829098,1.34883244,113800.0,113790.0,0.0495]
[1754097829311,1.42198526,113800.0,113790.0,0.0014]
[1754097830460,1.42298526,113800.0,113790.0,0.0014]
[1754097831077,1.42298526,113800.0,113790.0,0.0004]
[1754097831550,1.43248526,113800.0,113790.0,0.0004]
[1754097831774,1.43489526,113800.0,113790.0,0.0004]
[1754097832237,1.45387358,113800.0,113790.0,0.0004]
[1754097832449,1.43489526,113800.0,113790.0,0.0004]
[1754097832657,1.4538663,113800.0,113790.0,0.0004]
[1754097832863,1.4514563,113800.0,113790.0,0.0004]
[1754097835215,1.43489526,113800.0,113790.0,0.0004]
[1754097835421,1.45385569,113800.0,113790.0,0.0004]
[1754097837558,1.45144569,113800.0,113790.0,0.0004]
[1754097838352,1.43248526,113800.0,113790.0,0.0004]
[1754097839964,0.91038471,113800.0,113790.0,0.0004]
[1754097840220,1.95458581,113800.0,113790.0,0.0004]
[1754097840446,1.95699581,113800.0,113790.0,0.0004]
[1754097842232,1.95458581,113800.0,113790.0,0.0004]
[1754097842567,1.87888526,113800.0,113790.0,0.04787]
[1754097842970,1.8080312,113800.0,113790.0,0.04984]
[1754097843335,1.7642612,113800.0,113790.0,0.04984]
[1754097844512,1.8054712,113800.0,113790.0,0.04984]
[1754097844753,1.8054712,113800.0,113790.0,0.00348]
[1754097844994,1.8054712,113800.0,113790.0,0.0004]
[1754097845194,1.88846261,113800.0,113790.0,0.0004]
[1754097846583,1.36636206,113800.0,113790.0,0.0004]
[1754097846795,1.88846261,113800.0,113790.0,0.0004]
[1754097847234,1.88846261,113800.0,113790.0,0.04479]
[1754097847363,1.75350261,113800.0,113790.0,0.04479]
[1754097847586,1.88846261,113800.0,113790.0,0.04479]
[1754097850247,1.88846261,113800.0,113790.0,0.04676]
[1754097850447,1.88846261,113800.0,113790.0,0.04984]
[1754097851545,1.90774031,113800.0,113790.0,0.04984]
[1754097852093,1.90774031,113800.0,113790.0,0.00545]
[1754097852255,2.42984086,113800.0,113790.0,0.00348]
[1754097852467,2.42984086,113800.0,113790.0,0.0004]
[1754097853294,1.90774031,113800.0,113790.0,0.0004]
[1754097854275,2.42984086,113800.0,113790.0,0.0004]
[1754097856085,1.90774031,113800.0,113790.0,0.0004]
[1754097856704,1.96058031,113800.0,113790.0,0.0004]
[1754097859287,1.82530031,113800.0,113790.0,0.0004]
[1754097859494,1.96046031,113800.0,113790.0,0.0004]
[1754097861636,2.48256086,113800.0,113790.0,0.0004]
[1754097863626,1.96046031,113800.0,113790.0,0.0004]
[1754097864610,1.74321792,113800.0,113790.0,0.0004]
[1754097865123,1.94538184,113800.0,113790.0,0.0004]
[1754097866527,1.34028988,113800.0,113790.0,0.04142]
[1754097866725,1.34028988,113800.0,113790.0,0.04652]
[1754097866936,1.86239043,113800.0,113790.0,0.04652]
[1754097868326,1.72723043,113800.0,113790.0,0.04652]
[1754097868522,1.86227043,113800.0,113790.0,0.04652]
[1754097868773,1.94647032,113800.0,113790.0,0.04652]
[1754097870809,1.42436977,113800.0,113790.0,0.04652]
[1754097871098,1.94647032,113800.0,113790.0,0.04652]
[1754097871513,1.94639032,113800.0,113790.0,0.04652]
[1754097872233,1.86219043,113800.0,113790.0,0.04652]
[1754097872916,1.85369043,113800.0,113790.0,0.04652]
[1754097873456,1.71873043,113800.0,113790.0,0.04652]
[1754097873748,1.85377043,113800.0,113790.0,0.04652]
[1754097876429,1.85369043,113800.0,113790.0,0.04652]
[1754097876640,1.93789032,113800.0,113790.0,0.04652]
[1754097877843,1.94639032,113800.0,113790.0,0.04652]
[1754097879281,1.90518032,113800.0,113790.0,0.04652]
[1754097879613,1.94861032,113800.0,113790.0,0.04652]
[1754097885356,1.94011032,113800.0,113790.0,0.04652]
[1754097890334,1.93831624,113800.0,113790.0,0.04652]
[1754097890743,1.94681624,113800.0,113790.0,0.04652]
[1754097897091,1.81185624,113800.0,113790.0,0.04652]
[1754097897297,1.94681624,113800.0,113790.0,0.04652]
[1754097900179,1.42471569,113800.0,113790.0,0.04652]
[1754097900385,1.94681624,113800.0,113790.0,0.04652]
[1754097901320,1.93831624,113800.0,113790.0,0.04652]
[1754097902724,1.9127075,113800.0,113790.0,0.04652]
[1754097903108,1.93831624,113800.0,113790.0,0.04652]
[1754097903735,1.08135678,113800.0,113790.0,0.56862055]
[1754097903950,0.002,113800.0,113790.0,1.0907211]
[1754097904388,0.13696,113800.0,113790.0,1.0907211]
[1754097904595,0.002,113800.0,113790.0,1.0907211]
[1754097905028,0.13696,113800.0,113790.0,1.0907211]
[1754097906348,0.31270692,113800.0,113790.0,0.04652]
[1754097906593,0.31270692,113800.0,113790.0,1.0907211]
[1754097906803,0.88365262,113800.0,113790.0,0.04652]
[1754097907027,0.96785251,113800.0,113790.0,0.04652]
[1754097907240,0.98430153,113800.0,113790.0,0.04652]
[1754097909020,0.98330153,113800.0,113790.0,0.04652]
[1754097909925,0.98430153,113800.0,113790.0,0.04652]
[1754097910757,0.41335583,113800.0,113790.0,0.04652]
[1754097911016,0.41435583,113800.0,113790.0,0.04652]
[1754097914994,0.33447221,113800.0,113790.0,0.04652]
[1754097927530,0.19955221,113800.0,113790.0,0.04652]
[1754097927858,0.33447221,113800.0,113790.0,0.04652]
[1754097930822,0.33447221,113800.0,113790.0,0.56865311]
[1754097931582,0.38732221,113800.0,113790.0,0.56865311]
[1754097931818,0.33447221,113800.0,113790.0,0.56865311]
[1754097933021,0.19955221,113800.0,113790.0,0.62555842]
[1754097933235,0.33447221,113800.0,113790.0,0.56865311]
[1754097934845,0.33347221,113800.0,113790.0,0.56865311]
[1754097935800,0.33247221,113800.0,113790.0,0.56865311]
[1754097937682,0.33247221,113800.0,113790.0,0.04652]
[1754097937891,0.33247221,113800.0,113790.0,0.56865311]
[1754097954711,0.20215761,113810.0,113790.0,1.14769153]
[1754097954925,0.13488,113800.0,113790.0,0.05941531]
[1754097955125,0.17574461,113810.0,113790.0,0.52464311]
[1754097955331,0.13488,113800.0,113790.0,0.52464311]
[1754097955540,0.13488,113800.0,113790.0,0.00251]
[1754097955951,0.13488,113800.0,113790.0,0.0466]
[1754097956159,0.17674461,113810.0,113790.0,0.56873311]
[1754097956376,0.17774461,113810.0,113800.0,0.52213311]
[1754097956582,0.31062461,113810.0,113800.0,0.04611]
[1754097956795,0.31062461,113810.0,113800.0,0.56824311]
[1754097956991,0.31260461,113810.0,113800.0,0.56824311]
[1754097957142,0.35542461,113810.0,113800.0,0.56824311]
[1754097957344,0.35642461,113810.0,113800.0,0.56824311]
[1754097957553,0.22154461,113810.0,113800.0,0.56824311]
[1754097957748,0.35642461,113810.0,113800.0,0.56824311]
[1754097958454,0.35742461,113810.0,113800.0,0.56824311]
[1754097958687,0.35642461,113810.0,113800.0,0.56824311]
[1754097958867,0.22254461,113810.0,113800.0,0.56824311]
[1754097959082,0.31262461,113810.0,113800.0,0.56824311]
[1754097960121,0.17774461,113810.0,113800.0,0.56824311]
[1754097960332,0.31262461,113810.0,113800.0,0.56824311]
[1754097960671,0.17774461,113810.0,113800.0,0.56824311]
[1754097960909,0.31262461,113810.0,113800.0,0.56824311]
[1754097963959,0.31262461,113810.0,113800.0,0.04611]
[1754097964211,0.31262461,113810.0,113800.0,0.56824311]
[1754097964352,0.31262461,113810.0,113800.0,0.04611]
[1754097964552,0.31262461,113810.0,113800.0,0.56824311]
[1754097968360,0.31262461,113810.0,113800.0,0.04611]
[1754097968587,0.31262461,113810.0,113800.0,0.56824311]
[1754097973756,0.31262461,113810.0,113800.0,0.04611]
[1754097973900,0.31262461,113810.0,113800.0,0.56824311]
[1754097974322,0.31262461,113810.0,113800.0,0.04611]
[1754097974489,0.31262461,113810.0,113800.0,0.56824311]
[1754097976011,0.31262461,113810.0,113800.0,0.04611]
[1754097979507,0.32505197,113810.0,113800.0,0.04611]
[1754097981696,0.32505197,113810.0,113790.0,0.52253311]
[1754097981697,0.17574692,113800.0,113790.0,0.04134]
[1754097981898,0.74269003,113800.0,113790.0,0.04134]
[1754097982330,0.74269003,113800.0,113790.0,0.0004]
[1754097982533,0.8053768,113800.0,113790.0,0.0004]
[1754097983103,0.8073768,113800.0,113790.0,0.0004]
[1754097985091,0.28524369,113800.0,113790.0,0.0004]
[1754097985280,0.8073768,113800.0,113790.0,0.0004]
[1754097985713,0.28524369,113800.0,113790.0,0.0004]
[1754097986188,0.8073768,113800.0,113790.0,0.0004]
[1754097986838,0.37184358,113800.0,113790.0,0.0004]
[1754097987068,0.89397669,113800.0,113790.0,0.0004]
[1754097989700,0.92038869,113800.0,113790.0,0.0004]
[1754097990363,0.93783771,113800.0,113790.0,0.0004]
[1754097994003,1.07275771,113800.0,113790.0,0.0004]
[1754097995546,1.07035771,113800.0,113790.0,0.0004]
[1754098013402,0.5482246,113800.0,113790.0,0.0004]
[1754098013608,1.07035771,113800.0,113790.0,0.0004]
[1754098018296,1.41274771,113800.0,113790.0,0.0004]
[1754098018725,1.41035771,113800.0,113790.0,0.0004]
[1754098023986,1.18980079,113800.0,113790.0,0.0004]
[1754098024195,1.19048079,113800.0,113790.0,0.04407]
[1754098024453,1.30354094,113800.0,113790.0,0.04407]
[1754098025531,0.78140783,113800.0,113790.0,0.04407]
[1754098025920,1.30354094,113800.0,113790.0,0.04623]
[1754098026079,0.78140783,113800.0,113790.0,0.04623]
[1754098026284,1.30354094,113800.0,113790.0,0.04623]
[1754098027113,1.38774083,113800.0,113790.0,0.04623]
[1754098028773,0.86560772,113800.0,113790.0,0.04623]
[1754098029122,0.78072783,113800.0,113790.0,0.04623]
[1754098029337,1.30286094,113800.0,113790.0,0.04623]
[1754098029990,1.30354094,113800.0,113790.0,0.04098]
[1754098030208,1.32588094,113800.0,113790.0,0.0004]
[1754098030633,1.30354094,113800.0,113790.0,0.0004]
[1754098030848,1.38774083,113800.0,113790.0,0.04098]
[1754098033064,1.41008083,113800.0,113790.0,0.0004]
[1754098034478,1.93221394,113800.0,113790.0,0.0004]
[1754098034694,1.951634,113800.0,113790.0,0.0004]
[1754098034913,1.96538437,113800.0,113790.0,0.0004]
[1754098040665,1.951634,113800.0,113790.0,0.0004]
[1754098041545,2.004484,113800.0,113790.0,0.0004]
[1754098044398,2.154484,113800.0,113790.0,0.0004]
[1754098046242,2.154064,113800.0,113790.0,0.0004]
[1754098046449,2.15404482,113800.0,113790.0,0.0004]
[1754098047023,2.16254482,113800.0,113790.0,0.0004]
[1754098047308,0.51576236,113790.0,113780.0,0.04098]
[1754098047535,1.91679836,113790.0,113780.0,0.04098]
[1754098047738,1.91679836,113790.0,113780.0,0.04418]
[1754098047938,1.94321636,113790.0,113780.0,0.04418]
[1754098048491,1.94326414,113790.0,113780.0,0.04418]
[1754098048711,1.94426414,113790.0,113780.0,0.04418]
[1754098049951,1.94326414,113790.0,113780.0,0.04418]
[1754098050159,1.94426414,113790.0,113780.0,0.04418]
[1754098050374,1.94626414,113790.0,113780.0,0.04418]
[1754098051506,1.94426414,113790.0,113780.0,0.04418]
[1754098051708,1.94826414,113790.0,113780.0,0.04418]
[1754098052326,1.94826414,113790.0,113780.0,0.0004]
[1754098052528,1.97100414,113790.0,113780.0,0.0004]
[1754098053012,1.98475491,113790.0,113780.0,0.0004]
[1754098054171,1.96201491,113790.0,113780.0,0.0004]
[1754098054802,0.91774869,113790.0,113780.0,0.0004]
[1754098055037,1.96201491,113790.0,113780.0,0.0004]
[1754098055452,1.96201491,113790.0,113780.0,0.04326]
[1754098056897,1.96201491,113790.0,113780.0,0.04646]
[1754098059030,0.19322683,113780.0,113770.0,0.04646]
[1754098059245,1.34496388,113780.0,113770.0,0.0486]
[1754098059890,1.39843127,113780.0,113770.0,0.0486]
[1754098060975,1.45196127,113780.0,113770.0,0.0486]
[1754098061407,1.45396127,113780.0,113770.0,0.0486]
[1754098061624,1.40111127,113780.0,113770.0,0.0486]
[1754098061831,1.40111127,113780.0,113770.0,0.04326]
[1754098062251,1.39911127,113780.0,113770.0,0.04326]
[1754098062528,1.45196127,113780.0,113770.0,0.04326]
[1754098062761,1.62594947,113780.0,113770.0,0.0004]
[1754098062984,1.64868947,113780.0,113770.0,0.0004]
[1754098063601,0.51579326,113770.0,113760.0,0.04326]
[1754098063811,1.27857362,113770.0,113760.0,0.04326]
[1754098064031,1.29165083,113770.0,113760.0,0.04646]
[1754098064244,1.29165083,113770.0,113760.0,0.0486]
[1754098064649,1.31063378,113770.0,113760.0,0.0486]
[1754098064859,1.29165083,113770.0,113760.0,0.0486]
[1754098065691,0.77151772,113770.0,113760.0,0.0486]
[1754098065888,1.29365083,113770.0,113760.0,0.0486]
[1754098066545,1.28515083,113770.0,113760.0,0.0486]
[1754098068080,0.76301772,113770.0,113760.0,0.0486]
[1754098068286,1.28515083,113770.0,113760.0,0.0486]
[1754098068491,1.29890434,113770.0,113760.0,0.0486]
[1754098070459,0.53325774,113760.0,113750.0,0.00308]
[1754098070675,1.35863063,113760.0,113750.0,0.05128]
[1754098071102,1.38505563,113760.0,113750.0,0.05128]
[1754098071713,1.38605563,113760.0,113750.0,0.05128]
[1754098072353,1.38505563,113760.0,113750.0,0.05128]
[1754098073895,0.86492252,113760.0,113750.0,0.05128]
[1754098074139,1.38705563,113760.0,113750.0,0.05128]
[1754098074395,1.90918874,113760.0,113750.0,0.05128]
[1754098074576,1.38705563,113760.0,113750.0,0.05128]
[1754098075591,1.38773563,113760.0,113750.0,0.05128]
[1754098075863,1.90986874,113760.0,113750.0,0.05128]
[1754098076628,1.96271874,113760.0,113750.0,0.05128]
[1754098077112,1.98399874,113760.0,113750.0,0.00308]
[1754098077382,1.96271874,113760.0,113750.0,0.04159]
[1754098078092,1.98399874,113760.0,113750.0,0.00308]
[1754098079869,1.96271874,113760.0,113750.0,0.00308]
[1754098080919,1.98399874,113760.0,113750.0,0.00308]
[1754098081333,1.99775319,113760.0,113750.0,0.00308]
[1754098083042,2.00625319,113760.0,113750.0,0.00308]
[1754098083257,1.98497319,113760.0,113750.0,0.00308]
[1754098084110,2.00625319,113760.0,113750.0,0.00308]
[1754098085042,2.15625319,113760.0,113750.0,0.00308]
[1754098085918,1.0554063,113750.0,113740.0,0.04203]
[1754098086143,1.41149608,113750.0,113740.0,0.04406]
[1754098086562,1.43792308,113750.0,113740.0,0.04406]
[1754098086773,1.43860308,113750.0,113740.0,0.04406]
[1754098087163,1.43865084,113750.0,113740.0,0.04406]
[1754098087592,1.43965084,113750.0,113740.0,0.04406]
[1754098088258,1.43865084,113750.0,113740.0,0.04406]
[1754098088669,1.44065084,113750.0,113740.0,0.04406]